fUSD/lending_fUSD_20260323
["ID","MTS","AMOUNT","RATE_DAILY","PERIOD"]
[408776917,1774230864533,419.02,0.00011842,30]
[408776918,1774230864945,628.53,0.00012523,30]
[408776919,1774230896900,193.51,0.00011161,30]
[408776920,1774230897258,387.02,0.00011842,30]
[408776921,1774230897880,580.53,0.00012523,30]
[408776922,1774230937416,178.73,0.00011161,30]
[408776923,1774230937784,357.47,0.00011842,30]
[408776924,1774230938600,536.2,0.00012523,30]
[408776925,1774230968818,165.08,0.00011161,30]
[408776926,1774230969197,330.17,0.00011842,30]
[408776927,1774230969534,495.25,0.00012523,30]
[408776933,1774231025494,152.48,0.00011161,30]
[408776934,1774231025714,304.96,0.00011842,30]
[408776935,1774231026019,457.43,0.00012523,30]
[408776936,1774231026242,466.08,9.511e-05,2]
[408776937,1774231053173,607.59998901,0.000125,10]
[408776938,1774231081191,150.0,0.00011161,30]
[408776939,1774231081541,281.67,0.00011842,30]
[408776940,1774231081904,248.62243266,0.00012523,30]
[408776941,1774231209982,151.71314499,9.511e-05,2]
[408776946,1774231832135,-300.0,9.999e-05,2]
[408776947,1774231832145,-300.0,9.999e-05,2]
[408776948,1774231832154,-1200.0,9.999e-05,2]
[408776949,1774231832163,-300.0,9.999e-05,2]
[408776950,1774231832172,-603.88148309,0.0001,2]
[408776951,1774231832182,-151.0,0.0001,2]
[408776952,1774231832191,-200.0,0.0001,2]
[408776953,1774231832200,-200.0,0.0001,2]
[408776954,1774231832209,-200.0,0.0001,2]
[408776955,1774231832219,-200.0,0.0001,2]
[408776956,1774231832228,-200.0,0.0001,2]
[408776957,1774231832238,-200.0,0.0001,2]
[408776958,1774231832247,-200.0,0.0001,2]
[408776959,1774231832257,-200.0,0.0001,2]
[408776960,1774231832266,-200.0,0.0001,2]
[408776961,1774231832276,-200.0,0.0001,2]
[408776962,1774231832285,-272.67090081,0.0001,2]
[408776963,1774231832296,-253.15226545,0.00010025,2]
[408776964,1774231832305,-217.56,0.000101,2]
[408776965,1774231832315,-217.55,0.000101,2]
[408776966,1774231832325,-200.0,0.00010241,2]
[408776967,1774231832334,-151.0,0.00010241,2]
[408776968,1774231832344,-151.0,0.00010241,2]
[408776969,1774231832354,-151.0,0.00010241,2]
[408776970,1774231832363,-151.0,0.00010241,2]
[408776971,1774231832373,-500.0,0.00010241,2]
[408776972,1774231832382,-151.0,0.00010241,2]
[408776973,1774231832391,-500.0,0.00010241,2]
[408776974,1774231832401,-151.0,0.00010241,2]
[408776976,1774231832410,-500.0,0.00010241,2]
[408776977,1774231832419,-151.0,0.00010241,2]
[408776979,1774231832428,-500.0,0.00010241,2]
[408776981,1774231832437,-151.0,0.00010241,2]
[408776983,1774231832446,-500.0,0.00010241,2]
[408776985,1774231832455,-151.0,0.00010241,2]
[408776987,1774231832463,-526.08794847,0.00010241,2]
[408776989,1774231832472,-151.0,0.00010241,2]
[408776991,1774231832481,-175.5334476,0.00010241,2]
[408776993,1774231832490,-151.0,0.00010241,2]
[408776995,1774231832499,-151.0,0.00010241,2]
[408776997,1774231832507,-2589.52487551,0.00010247,2]
[408776999,1774231832519,-477.86542223,0.00010247,2]
[408777003,1774231832543,-287.06431718,0.00010247,2]
[408777005,1774231832554,-894.93568282,0.00010247,2]
[408777022,1774231832809,-4336.98085293,0.00010247,2]
[408777023,1774231832820,-4201.81884933,0.00010247,2]
[408777024,1774231832829,-500.0,0.00010565,2]
[408777025,1774231832838,-150.0,0.000106,2]
[408777026,1774231832847,-500.0,0.00010667,2]
[408777027,1774231832856,-500.0,0.00010733,2]
[408777028,1774231832865,-500.0,0.00010733,2]
[408777029,1774231832875,-500.0,0.00010733,2]
[408777030,1774231832884,-502.02941809,0.00010733,2]
[408777031,1774231832893,-500.0,0.00010733,2]
[408777032,1774231832902,-290.84,0.00010897,2]
[408777033,1774231832911,-181.85,0.00010942,2]
[408777034,1774231832920,-150.0,0.00010959,2]
[408777035,1774231832929,-5000.0,0.00010999,2]
[408777036,1774231832939,-254.0,0.00010999,2]
[408777037,1774231832947,-420.0,0.00010999,2]
[408777038,1774231832956,-1680.0,0.00010999,2]
[408777039,1774231832965,-500.0,0.00011,2]
[408777040,1774231832975,-250.0,0.00011,2]
[408777041,1774231832984,-166.66,0.00011044,2]
[408777042,1774231832993,-500.0,0.00011076,2]
[408777043,1774231833003,-500.0,0.00011076,2]
[408777044,1774231833012,-500.0,0.00011076,2]
[408777045,1774231833022,-500.0,0.00011076,2]
[408777046,1774231833031,-500.0,0.00011076,2]
[408777047,1774231833040,-500.0,0.00011076,2]
[408777048,1774231833050,-500.0,0.00011076,2]
[408777049,1774231833060,-500.0,0.00011076,2]
[408777050,1774231833070,-500.0,0.00011076,2]
[408777051,1774231833079,-500.0,0.00011076,2]
[408777052,1774231833089,-403.50636335,0.00011076,2]
[408777053,1774231833098,-500.65573894,0.00011215,2]
[408777054,1774231833107,-166.66,0.00011277,2]
[408777055,1774231833117,-502.81680316,0.00011281,2]
[408777056,1774231833128,-1000.0,0.00011281,2]
[408777057,1774231833137,-1054.39043362,0.00011281,2]
[408777058,1774231833147,-1000.0,0.00011281,2]
[408777059,1774231833157,-578.20924308,0.0001135,2]
[408777060,1774231833167,-695.39793187,0.0001135,2]
[408777061,1774231833177,-174.61919141,0.0001135,2]
[408777062,1774231833188,-500.0,0.0001135,2]
[408777063,1774231833198,-500.0,0.0001135,2]
[408777064,1774231833207,-500.0,0.0001135,2]
[408777065,1774231833218,-500.0,0.0001135,2]
[408777066,1774231833227,-500.0,0.0001135,2]
[408777067,1774231833237,-500.0,0.0001135,2]
[408777068,1774231833247,-500.0,0.0001135,2]
[408777069,1774231833258,-500.0,0.0001135,2]
[408777070,1774231833267,-500.0,0.0001135,2]
[408777071,1774231833276,-500.0,0.0001135,2]
[408777072,1774231833285,-500.0,0.0001135,2]
[408777073,1774231833298,-500.0,0.0001135,2]
[408777074,1774231833307,-3060.48,0.00011507,2]
[408777075,1774231833317,-166.66,0.0001151,2]
[408777076,1774231833326,-181.85,0.0001155,2]
[408777077,1774231833729,-282.24764091,0.00011586,2]
[408777078,1774231833739,-2853.67,0.00011641,2]
[408777079,1774231833751,-500.0,0.00011644,2]
[408777080,1774231833761,-2312.15,0.00011699,2]
[408777081,1774231833770,-166.66,0.00011742,2]
[408777082,1774231833780,-1000.0,0.000118,2]
[408777083,1774231833789,-1000.0,0.000118,3]
[408777084,1774231833799,-1000.0,0.000118,4]
[408777085,1774231833809,-1000.0,0.000118,5]
[408777086,1774231833818,-1500.0,0.00011829,2]
[408777087,1774231833828,-1500.0,0.00011829,2]
[408777088,1774231833838,-181.08010149,0.00011898,2]
[408777089,1774231833847,-1976.7385,0.00011901,2]
[408777090,1774231833857,-650.1377,0.00011901,2]
[408777091,1774231833866,-151.0,0.00011909,2]
[408777092,1774231833875,-2500.0,0.00011912,2]
[408777093,1774231833885,-547.55356679,0.00011913,2]
[408777094,1774231833894,-250.0167075,0.0001193,2]
[408777095,1774231833904,-350.0,0.00011947,2]
[408777096,1774231833913,-174.014,0.00011969,2]
[408777097,1774231833922,-1596.927,0.00011969,2]
[408777098,1774231833931,-166.66,0.00011975,2]
[408777099,1774231833941,-1106.86157,0.0001199,2]
[408777100,1774231833950,-1106.86156,0.0001199,2]
[408777101,1774231833959,-1039.20302,0.0001199,2]
[408777102,1774231833969,-151.0,0.00011998,2]
[408777103,1774231833978,-154.9315,0.00012,2]
[408777104,1774231833987,-1106.86157,0.00012,2]
[408777105,1774231833996,-173.13019172,0.00012003,2]
[408777106,1774231834006,-233.17972575,0.00012011,2]
[408777107,1774231834015,-500.0,0.00012011,2]
[408777108,1774231834025,-487.22508189,0.00012011,2]
[408777109,1774231834035,-500.0,0.00012011,2]
[408777110,1774231834044,-500.0,0.00012011,2]
[408777111,1774231834053,-190.99531225,0.00012011,2]
[408777112,1774231834062,-500.0,0.00012011,2]
[408777113,1774231834071,-156.75529052,0.00012011,2]
[408777114,1774231834081,-500.0,0.00012011,2]
[408777115,1774231834090,-500.0,0.00012011,2]
[408777116,1774231834100,-500.0,0.00012011,2]
[408777117,1774231834109,-500.0,0.00012011,2]
[408777118,1774231834119,-500.0,0.00012011,2]
[408777119,1774231834128,-500.0,0.00012011,2]
[408777120,1774231834138,-608.86836115,0.00012011,2]
[408777121,1774231834147,-572.19230901,0.00012011,2]
[408777122,1774231834156,-500.0,0.00012011,2]
[408777123,1774231834165,-500.0,0.00012011,2]
[408777124,1774231834175,-500.0,0.00012011,2]
[408777125,1774231834184,-519.16908327,0.00012011,2]
[408777126,1774231834193,-500.0,0.00012011,2]
[408777127,1774231834202,-151.0,0.00012012,2]
[408777128,1774231834211,-113630.8816889,0.00012012,2]
[408777129,1774231834223,-3325.7497682,0.00012012,2]
[408777130,1774231834235,-10433.9301384,0.00012012,2]
[408777131,1774231834250,-1314.47745983,0.00012012,2]
[408777133,1774231838217,-151.0,0.0001135,2]
[408777134,1774231838228,-150.0,0.00011715,30]
[408777135,1774231838237,-3799.09556354,0.00012012,2]
[408777136,1774231838479,-581.1401268,0.00012012,2]
[408777137,1774231838491,-340.64224758,0.00012012,2]
[408777152,1774231840718,-151.0,0.00012012,2]
[408777153,1774231840727,-1256.52319047,0.00012012,2]
[408777154,1774231840738,-336.7928466,0.00012012,2]
[408777155,1774231840749,-1958.69676079,0.00012012,2]
[408777156,1774231840777,-1810.91461116,0.00012012,2]
[408777165,1774231843490,-4255.8795831,0.00011913,2]
[408777166,1774231843500,-24826.34831923,0.00012012,2]
[408777167,1774231843759,-418215.25211226,0.00012012,2]
[408777176,1774231846274,-80682.39914444,0.00012012,2]
[408777177,1774231846441,-775.84293987,0.00012012,2]
[408777178,1774231846555,-480.80798455,0.00012012,2]
[408777179,1774231846567,-12740.22308375,0.00012012,2]
[408777180,1774231846580,-467.74106694,0.00012012,2]
[408777181,1774231846831,-505.0,0.00012012,2]
[408777182,1774231846847,-1756.25464918,0.00012012,2]
[408777205,1774232253409,168.1,8.584e-05,2]
[408777220,1774232784090,8275.07969047,8e-05,2]
[408777225,1774232935572,463.26,4.893e-05,2]
[408777226,1774232935773,463.26,5.15e-05,2]
[408777227,1774232935957,463.26,5.408e-05,2]
[408777228,1774232936165,463.26,5.666e-05,2]
[408777229,1774232936366,463.26,5.923e-05,2]
[408777230,1774232936574,463.26,6.181e-05,2]
[408777231,1774232936792,463.26,6.438e-05,2]
[408777232,1774232936982,463.26,6.696e-05,2]
[408777233,1774232937187,463.26,6.953e-05,2]
[408777236,1774232937380,463.26,7.211e-05,2]
[408777237,1774232937575,463.26,7.468e-05,2]
[408777238,1774232937902,34867.87069719,9.5e-05,3]
[408777239,1774232938034,463.26,7.726e-05,2]
[408777240,1774232938230,463.26,7.983e-05,2]
[408777241,1774232938446,463.26,8.241e-05,2]
[408777243,1774232938639,463.26,8.498e-05,2]
[408777244,1774232938843,463.26,8.756e-05,2]
[408777245,1774232948949,463.26,9.013e-05,2]
[408777246,1774232949144,463.26,9.271e-05,2]
[408777260,1774233031350,-463.26,9.529e-05,2]
[408777261,1774233031359,-245.0,9.529e-05,2]
[408777262,1774233031368,-1500.0,9.776e-05,2]
[408777263,1774233031377,-463.26,9.786e-05,2]
[408777264,1774233031386,-250.0,9.831e-05,2]
[408777265,1774233031396,-250.0,9.883e-05,2]
[408777266,1774233031406,-2555.05,9.886e-05,2]
[408777267,1774233031416,-500.0,9.899e-05,2]
[408777268,1774233031426,-1280.1,9.953e-05,2]
[408777269,1774233031436,-300.0,9.999e-05,2]
[408777270,1774233031446,-150.0,9.999e-05,2]
[408777271,1774233031455,-300.0,9.999e-05,2]
[408777272,1774233031465,-1200.0,9.999e-05,2]
[408777273,1774233031475,-9481.35575008,0.0001,2]
[408777274,1774233031484,-1943.04129318,0.0001,2]
[408777275,1774233031494,-2751.9583222,0.0001,2]
[408777276,1774233031503,-18251.08109322,0.0001,2]
[408777277,1774233031513,-721.68,0.0001007,2]
[408777278,1774233031522,-2000.0,0.00010111,2]
[408777279,1774233031531,-41950.45,0.00010249,2]
[408777280,1774233031540,-1057.0,0.0001025,2]
[408777281,1774233031549,-150.0,0.000104,2]
[408777282,1774233031558,-500.0,0.00010431,2]
[408777283,1774233031568,-200.0,0.00010662,2]
[408777285,1774233031577,-150.68181439,0.000107,2]
[408777287,1774233031586,-168.1,0.00010729,2]
[408777289,1774233031595,-250.0,0.00010754,2]
[408777290,1774233031604,-2500.0,0.00010799,2]
[408777291,1774233031614,-1034.11916619,0.000108,2]
[408777292,1774233031623,-500.39223036,0.00010873,2]
[408777293,1774233031632,-500.79842061,0.00010873,2]
[408777295,1774233031642,-500.0,0.00010873,2]
[408777296,1774233031652,-502.42549594,0.00010873,2]
[408777299,1774233031662,-501.344434,0.00010873,2]
[408777301,1774233031671,-167.53586098,0.00010873,2]
[408777303,1774233031681,-500.76922154,0.00010873,2]
[408777305,1774233031690,-165.9205974,0.00010873,2]
[408777307,1774233031699,-160.21275233,0.00010873,2]
[408777308,1774233031709,-500.0,0.00010873,2]
[408777309,1774233031718,-500.20919746,0.00010873,2]
[408777310,1774233031728,-500.0,0.00010873,2]
[408777311,1774233031738,-500.5873319,0.00010873,2]
[408777312,1774233031749,-574.78011138,0.00010873,2]
[408777313,1774233031758,-500.0,0.00010873,2]
[408777314,1774233031767,-500.0,0.00010873,2]
[408777315,1774233031777,-500.13305113,0.00010873,2]
[408777316,1774233031787,-500.0,0.00010873,2]
[408777317,1774233031797,-500.0,0.00010873,2]
[408777318,1774233031806,-500.0,0.00010873,2]
[408777319,1774233031816,-500.0,0.00010873,2]
[408777320,1774233031825,-500.0,0.00010873,2]
[408777321,1774233031834,-500.0,0.00010873,2]
[408777322,1774233031843,-314.42166216,0.00010873,2]
[408777323,1774233031853,-1095.95,0.00010873,2]
[408777324,1774233031863,-2677.693,0.00010889,2]
[408777325,1774233031872,-166.904,0.00010889,2]
[408777326,1774233031881,-151.0,0.00010892,2]
[408777327,1774233031890,-500.0,0.00010892,2]
[408777328,1774233031899,-500.0,0.00010892,2]
[408777329,1774233031908,-151.0,0.00010892,2]
[408777330,1774233031918,-500.0,0.00010892,2]
[408777331,1774233031927,-500.0,0.00010892,2]
[408777332,1774233031937,-151.0,0.00010892,2]
[408777333,1774233031947,-500.0,0.00010892,2]
[408777334,1774233031956,-151.0,0.00010892,2]
[408777335,1774233031966,-500.0,0.00010892,2]
[408777336,1774233031975,-151.0,0.00010892,2]
[408777337,1774233031985,-500.0,0.00010892,2]
[408777338,1774233031994,-151.0,0.00010892,2]
[408777339,1774233032003,-500.0,0.00010892,2]
[408777340,1774233032012,-151.0,0.00010892,2]
[408777341,1774233032022,-500.0,0.00010892,2]
[408777342,1774233032031,-151.0,0.00010892,2]
[408777343,1774233032041,-500.0,0.00010892,2]
[408777344,1774233032055,-151.0,0.00010892,2]
[408777345,1774233032065,-500.0,0.00010892,2]
[408777346,1774233032073,-151.0,0.00010892,2]
[408777347,1774233032082,-500.0,0.00010892,2]
[408777348,1774233032092,-151.0,0.00010892,2]
[408777349,1774233032101,-151.0,0.00010892,2]
[408777350,1774233032110,-151.0,0.00010892,2]
[408777351,1774233032119,-151.0,0.00010892,2]
[408777352,1774233032129,-151.0,0.00010892,2]
[408777353,1774233032139,-200.0,0.00010892,2]
[408777354,1774233032148,-151.0,0.00010892,2]
[408777355,1774233032157,-500.0,0.00010892,2]
[408777356,1774233032167,-500.0,0.00010892,2]
[408777357,1774233032176,-151.0,0.00010892,2]
[408777358,1774233032185,-500.0,0.00010892,2]
[408777359,1774233032194,-151.0,0.00010892,2]
[408777360,1774233032203,-500.0,0.00010892,2]
[408777361,1774233032213,-151.0,0.00010892,2]
[408777362,1774233032221,-500.0,0.00010892,2]
[408777363,1774233032231,-151.0,0.00010892,2]
[408777364,1774233032241,-151.0,0.00010892,2]
[408777365,1774233032251,-500.0,0.00010892,2]
[408777366,1774233032260,-151.0,0.00010892,2]
[408777367,1774233032270,-500.0,0.00010892,2]
[408777368,1774233032279,-151.0,0.00010892,2]
[408777369,1774233032289,-151.0,0.00010892,2]
[408777370,1774233032299,-151.0,0.00010892,2]
[408777371,1774233032309,-151.0,0.00010892,2]
[408777372,1774233032319,-246.12567273,0.00010892,2]
[408777373,1774233032329,-500.0,0.00010898,2]
[408777374,1774233032339,-500.0,0.00010898,2]
[408777375,1774233032348,-500.0,0.00010898,2]
[408777376,1774233032359,-648.21215628,0.00010898,2]
[408777377,1774233032369,-500.0,0.00010898,2]
[408777378,1774233032378,-500.0,0.00010898,2]
[408777379,1774233032388,-500.0,0.00010898,2]
[408777380,1774233032397,-500.0,0.00010898,2]
[408777381,1774233032408,-500.0,0.00010898,2]
[408777382,1774233032418,-500.0,0.00010898,2]
[408777383,1774233032428,-500.0,0.00010898,2]
[408777384,1774233032438,-500.0,0.00010898,2]
[408777385,1774233032447,-500.0,0.00010898,2]
[408777386,1774233032458,-500.0,0.00010898,2]
[408777387,1774233032467,-500.0,0.00010898,2]
[408777388,1774233032477,-500.0,0.00010898,2]
[408777389,1774233032487,-500.0,0.00010898,2]
[408777390,1774233032496,-500.0,0.00010898,2]
[408777391,1774233032507,-500.0,0.00010898,2]
[408777392,1774233032516,-500.0,0.00010898,2]
[408777393,1774233032526,-500.0,0.00010898,2]
[408777394,1774233032536,-500.0,0.00010898,2]
[408777395,1774233032545,-500.0,0.00010898,2]
[408777396,1774233032555,-500.0,0.00010898,2]
[408777397,1774233032566,-500.0,0.00010898,2]
[408777398,1774233032577,-500.0,0.00010898,2]
[408777399,1774233032587,-264.86526362,0.00010898,2]
[408777400,1774233032597,-500.0,0.00010898,2]
[408777401,1774233032608,-500.0,0.00010898,2]
[408777402,1774233032619,-500.0,0.00010898,2]
[408777403,1774233032628,-500.0,0.00010898,2]
[408777404,1774233032638,-500.0,0.00010898,2]
[408777405,1774233032650,-500.0,0.00010898,2]
[408777406,1774233032661,-500.0,0.00010898,2]
[408777407,1774233032671,-500.0,0.00010898,2]
[408777408,1774233032681,-213.87082122,0.00010898,2]
[408777409,1774233032691,-500.0,0.00010898,2]
[408777410,1774233032701,-500.0,0.00010898,2]
[408777411,1774233032711,-500.0,0.00010898,2]
[408777412,1774233032720,-500.0,0.00010898,2]
[408777413,1774233032730,-500.0,0.00010898,2]
[408777414,1774233032741,-543.47326293,0.00010898,2]
[408777415,1774233032751,-500.0,0.00010898,2]
[408777416,1774233032760,-225.1227478,0.00010898,2]
[408777417,1774233032769,-168.69320608,0.00010898,2]
[408777418,1774233032778,-1010.03678902,0.00010898,3]
[408777419,1774233032787,-167.129,0.00010898,2]
[408777420,1774233032797,-155.0,0.00010898,2]
[408777421,1774233032806,-500.0,0.00010898,2]
[408777422,1774233032815,-7631.61831706,0.000109,2]
[408777423,1774233032825,-500.0,0.00010959,2]
[408777424,1774233032834,-420.0,0.00010999,2]
[408777425,1774233032843,-255.0,0.00010999,2]
[408777426,1774233032853,-1680.0,0.00010999,2]
[408777427,1774233032863,-6233.41,0.00011006,2]
[408777428,1774233032872,-2430.5184,0.00011061,2]
[408777429,1774233032881,-2640.74356692,0.00011099,2]
[408777430,1774233032890,-25121.33142327,0.00011099,2]
[408777431,1774233032900,-1095.95,0.00011147,2]
[408777432,1774233032910,-150.0,0.0001116,30]
[408777433,1774233032920,-500.0,0.00011172,2]
[408777434,1774233032929,-601.76558078,0.00011192,2]
[408777435,1774233032938,-1280.1,0.00011197,2]
[408777436,1774233032947,-695.39793187,0.0001134,2]
[408777437,1774233032957,-174.61919141,0.0001134,2]
[408777438,1774233032966,-500.0,0.0001134,2]
[408777439,1774233032977,-500.0,0.0001134,2]
[408777440,1774233032986,-500.0,0.0001134,2]
[408777441,1774233032996,-500.0,0.0001134,2]
[408777442,1774233033006,-500.0,0.0001134,2]
[408777443,1774233033016,-500.0,0.0001134,2]
[408777444,1774233033026,-500.0,0.0001134,2]
[408777445,1774233033036,-500.0,0.0001134,2]
[408777446,1774233033048,-500.0,0.0001134,2]
[408777447,1774233033057,-500.0,0.0001134,2]
[408777448,1774233033067,-500.0,0.0001134,2]
[408777449,1774233033076,-500.0,0.0001134,2]
[408777450,1774233033087,-2640.74356685,0.00011367,2]
[408777451,1774233033097,-2000.0,0.00011374,2]
[408777452,1774233033107,-151.0,0.00011419,2]
[408777453,1774233033118,-25121.33142322,0.00011419,2]
[408777454,1774233033127,-1002.08574214,0.00011421,2]
[408777455,1774233033136,-500.41700518,0.00011421,2]
[408777456,1774233033146,-347.16645487,0.00011421,2]
[408777457,1774233033156,-1002.65143522,0.00011421,2]
[408777458,1774233033167,-1000.0,0.00011421,2]
[408777459,1774233033177,-500.0,0.00011421,2]
[408777460,1774233033186,-1000.0,0.00011421,2]
[408777461,1774233033195,-1000.0,0.00011421,2]
[408777462,1774233033205,-500.0,0.00011421,2]
[408777463,1774233033214,-1000.0,0.00011421,2]
[408777464,1774233033223,-1095.95,0.00011421,2]
[408777465,1774233033233,-166.67,0.00011429,2]
[408777466,1774233033242,-200.0,0.0001144,2]
[408777467,1774233033258,-1000.0,0.00011442,2]
[408777468,1774233033268,-500.0,0.00011446,2]
[408777469,1774233033278,-12525.0,0.00011636,2]
[408777470,1774233033287,-1095.95,0.00011695,2]
[408777471,1774233033296,-154.5815,0.000118,2]
[408777472,1774233033307,-83197.8527,0.00011801,2]
[408777473,1774233033316,-151.0,0.00011801,2]
[408777474,1774233033326,-260.53,0.00011841,30]
[408777475,1774233033337,-1719.186203,0.00011871,2]
[408777476,1774233033347,-2366.320766,0.00011871,2]
[408777477,1774233033356,-2633.414593,0.00011871,2]
[408777478,1774233033365,-500.11896456,0.00011873,2]
[408777479,1774233033375,-500.39306299,0.00011873,2]
[408777480,1774233033384,-181.08010149,0.00011888,2]
[408777481,1774233033394,-48202.84326448,0.000119,2]
[408777482,1774233033405,-1854.1925,0.00011911,2]
[408777483,1774233033415,-151.0,0.00011912,2]
[408777484,1774233033424,-151.0,0.00011912,2]
[408777485,1774233033433,-151.0,0.00011912,2]
[408777486,1774233033442,-32987.9588,0.00011912,2]
[408777487,1774233033452,-1000.0,0.00011912,2]
[408777488,1774233033461,-2640.74356685,0.00011933,2]
[408777489,1774233033471,-1095.95,0.00011968,2]
[408777490,1774233033480,-1500.0,0.00011968,2]
[408777491,1774233033489,-1500.0,0.00011968,2]
[408777492,1774233033499,-794.51727271,0.00011968,2]
[408777493,1774233033513,-665.55818309,0.00011968,2]
[408777494,1774233033522,-501.84702512,0.00011968,2]
[408777495,1774233033531,-350.0,0.00011969,2]
[408777496,1774233033541,-25121.33142322,0.00011979,2]
[408777497,1774233033550,-200.0,0.00011988,2]
[408777498,1774233033559,-1106.86156,0.0001199,2]
[408777499,1774233033569,-1039.20303,0.0001199,2]
[408777500,1774233033578,-1039.20303,0.0001199,2]
[408777501,1774233033587,-1039.20303,0.0001199,2]
[408777502,1774233033597,-547.43,0.00012,2]
[408777503,1774233033607,-154.66478047,0.00012009,2]
[408777504,1774233033616,-894.3697486,0.00012011,2]
[408777505,1774233033625,-367.29641086,0.00012011,2]
[408777506,1774233033634,-1348.8211834,0.00012011,2]
[408777507,1774233033643,-14376.7648498,0.00012011,2]
[408777508,1774233033652,-181.3773359,0.00012011,2]
[408777509,1774233033662,-200.0,0.00012012,2]
[408777510,1774233033671,-200.0,0.00012012,2]
[408777511,1774233033679,-200.0,0.00012012,2]
[408777512,1774233033689,-151.0,0.00012012,2]
[408777513,1774233033698,-200.0,0.00012012,2]
[408777514,1774233033707,-1044.0,0.00012013,5]
[408777515,1774233033715,-968.0,0.00012013,5]
[408777516,1774233033725,-775.0,0.00012013,5]
[408777517,1774233033734,-17563.3769559,0.00012013,2]
[408777518,1774233033743,-151.0,0.00012013,2]
[408777519,1774233033752,-151.0,0.00012016,2]
[408777520,1774233033761,-151.0,0.00012016,2]
[408777521,1774233033770,-166.67,0.00012058,2]
[408777522,1774233033779,-587.0,0.00012099,2]
[408777523,1774233033791,-433.0,0.00012099,2]
[408777524,1774233033801,-2351.0,0.00012099,2]
[408777525,1774233033810,-1000.0,0.000121,6]
[408777526,1774233033819,-1000.0,0.000121,7]
[408777527,1774233033829,-902.1,0.00012105,2]
[408777528,1774233033838,-200.0,0.0001211,2]
[408777529,1774233033847,-1000.0,0.00012113,2]
[408777530,1774233033858,-1000.0,0.00012113,2]
[408777531,1774233033867,-1000.0,0.00012113,2]
[408777532,1774233033876,-1000.0,0.00012113,2]
[408777533,1774233033885,-1000.0,0.00012113,2]
[408777534,1774233033894,-1000.0,0.00012113,2]
[408777535,1774233033904,-1000.0,0.00012113,2]
[408777536,1774233033914,-1000.0,0.00012113,2]
[408777537,1774233033924,-1000.0,0.00012113,2]
[408777538,1774233033934,-1000.0,0.00012113,2]
[408777539,1774233033943,-1000.0,0.00012113,2]
[408777540,1774233033952,-1000.0,0.00012113,2]
[408777541,1774233033961,-340.68015874,0.00012113,2]
[408777542,1774233033971,-1106.86156,0.00012113,2]
[408777543,1774233033980,-1039.20303,0.00012113,2]
[408777544,1774233033990,-1039.20302,0.00012113,2]
[408777545,1774233033999,-1106.86157,0.00012113,2]
[408777546,1774233034009,-157.935863,0.00012113,2]
[408777547,1774233034018,-5356.31893231,0.00012113,2]
[408777548,1774233034030,-33281.90617134,0.00012113,2]
[408777549,1774233034370,-200.0,0.00012132,2]
[408777550,1774233034380,-200.0,0.00012132,2]
[408777551,1774233034389,-200.0,0.00012132,2]
[408777552,1774233034400,-200.0,0.00012132,2]
[408777553,1774233034409,-181.85,0.00012158,2]
[408777554,1774233034419,-166.66,0.00012207,2]